2CCN - Level 2 Cost Centre Name,,9CCN - Level 9 Cost Centre Name,9CCC - Level 9 Cost Centre Code,9AN - Level 9 Account Name,9AC - Level 9 Account Code,Date posted,Date of transaction,Merchant Name,Merchant City,Merchant State,Merchant Zip Code,Originating Account Name,Originating Account Number,MCC/SIC Code,MCC Description,Original Amount,Currency,Conversion Rate,Billed Amount,Debit Credit,Reference Number,Statement Cycle,Account Name
Gloucester City Council,23UE,Museum of Gloucester,MU002,General Supplies/Materials,3025,26/04/2017,25/04/2017,WILKO RETAIL LIMIT,GLOUCESTER 14,,GL1 1SL,REDACTED,556*********2362,5722,HOUSEHOLD APPLIANCE STORES,5,Pound Sterling (826),1.000000000,5,Debit,05230657116490070739687,02/05/2017,GLOUCESTER CC
Gloucester City Council,23UE,Museum of Gloucester,MU002,General Supplies/Materials,3025,28/04/2017,27/04/2017,ASDA SUPERSTORE,GLOUCESTER,GBR,GL1 1DS,REDACTED,556*********2362,5411,"GROCERY STORES, SUPERMARKETS",2.9,Pound Sterling (826),1.000000000,2.9,Debit,45377757118050277533757,02/05/2017,GLOUCESTER CC
Gloucester City Council,23UE,Museum of Gloucester,MU002,General Supplies/Materials,3025,01/05/2017,29/04/2017,ASDA SUPERSTORE,GLOUCESTER,GBR,GL1 1DS,REDACTED,556*********2362,5411,"GROCERY STORES, SUPERMARKETS",1.98,Pound Sterling (826),1.000000000,1.98,Debit,15377757120060672880561,02/05/2017,GLOUCESTER CC
Gloucester City Council,23UE,Countryside Unit,EP003,General Supplies/Materials,3025,13/04/2017,12/04/2017,ALLFLEX EUROPE (UK,HAWICK,GBR,TD9 8PZ,REDACTED,556*********6734,5599,MISCELLANEOUS AUTOMOTIVE DEALERS,4.2,Pound Sterling (826),1.000000000,4.2,Debit,15425157103060028400896,02/05/2017,GLOUCESTER CC
Gloucester City Council,23UE,Countryside Unit,EP003,Grounds Maintenance,1100,13/04/2017,12/04/2017,PAYPAL *WONG TIN HO,35314369001,GBR,TW91EH,REDACTED,556*********6734,5331,VARIETY STORES,13.49,Pound Sterling (826),1.000000000,13.49,Debit,85130087102714954322388,02/05/2017,GLOUCESTER CC
Gloucester City Council,23UE,Countryside Unit,EP003,Vehicle Repairs and Maintenance,2103,24/04/2017,23/04/2017,PAYPAL *GENERALTOOL,35314369001,GBR,TW91EH,REDACTED,556*********6734,7399,BUSINESS SERVICES NOT ELSEWHERE CLASSIFIED,29.9,Pound Sterling (826),1.000000000,29.9,Debit,85130087113716279030502,02/05/2017,GLOUCESTER CC
Gloucester City Council,23UE,Homelessness,HS002,B&B Payments,1303,03/04/2017,31/03/2017,TRAVELODGE GB0000,THAME,,OX9 3AT,REDACTED,556*********4774,3615,TRAVELODGE,160,Pound Sterling (826),1.000000000,160,Debit,55504437090298143786325,02/05/2017,GLOUCESTER CC
Gloucester City Council,23UE,Homelessness,HS002,B&B Payments,1303,11/04/2017,10/04/2017,TRAVELODGE GB0000,THAME,,OX9 3AT,REDACTED,556*********4774,3615,TRAVELODGE,504,Pound Sterling (826),1.000000000,504,Debit,55504437100298126819497,02/05/2017,GLOUCESTER CC
Gloucester City Council,23UE,Homelessness,HS002,B&B Payments,1303,13/04/2017,12/04/2017,TRAVELODGE GB0000,THAME,,OX9 3AT,REDACTED,556*********4774,3615,TRAVELODGE,366,Pound Sterling (826),1.000000000,366,Debit,55504437102298143378442,02/05/2017,GLOUCESTER CC
Gloucester City Council,23UE,Docks Complex - Services,AM006,Equipment and Furniture,3001,05/04/2017,04/04/2017,B & Q 1179,GLOUCESTER,,GL1 2SG,REDACTED,556*********1053,5211,LUMBER AND BUILDING MATERIALS STORES,41.74,Pound Sterling (826),1.000000000,41.74,Debit,05230657095820077876642,02/05/2017,GLOUCESTER CC
Gloucester City Council,23UE,Docks Complex - Services,AM006,Hospitality & Refreshments,3104,12/04/2017,11/04/2017,SAINSBURYS 2221,GLOUCESTER,GBR,GL2 5SA,REDACTED,556*********1053,5411,"GROCERY STORES, SUPERMARKETS",14,Pound Sterling (826),1.000000000,14,Debit,25425157102050099797445,02/05/2017,GLOUCESTER CC
Gloucester City Council,23UE,Docks Complex - Services,AM006,Equipment and Furniture,3001,20/04/2017,19/04/2017,B & Q 1179,GLOUCESTER,,GL1 2SG,REDACTED,556*********1053,5211,LUMBER AND BUILDING MATERIALS STORES,6.15,Pound Sterling (826),1.000000000,6.15,Debit,05230657110220074267385,02/05/2017,GLOUCESTER CC
Gloucester City Council,23UE,Kings Quarter Development,XCKQD,Contract Works/Services,9001,27/04/2017,26/04/2017,Amazon UK Marketplace,800-279-6620,LUX,L2338,REDACTED,556*********1053,5942,BOOK STORES,15.99,Pound Sterling (826),1.000000000,15.99,Debit,55204727116000469116468,02/05/2017,GLOUCESTER CC
Gloucester City Council,23UE,Docks Complex - Services,AM006,Hospitality & Refreshments,3104,28/04/2017,27/04/2017,MCOLLS,GLOUCESTERSHI,GBR,GL1 2DN,REDACTED,556*********1053,5499,"MISC FOOD STORES-SPECIALITY,CONVENIENCE,MARKETS,VENDING MACHINES",4.2,Pound Sterling (826),1.000000000,4.2,Debit,25377757118050126183129,02/05/2017,GLOUCESTER CC
Gloucester City Council,23UE,Housing Strategy & Enabling,SH001,Public Transport - Staff,2402,11/04/2017,09/04/2017,Trainline,London,GBR,1445,REDACTED,556*********6959,4112,PASSENGER RAILWAYS,17.49,Pound Sterling (826),1.000000000,17.49,Debit,85130087100714882313154,02/05/2017,GLOUCESTER CC
Gloucester City Council,23UE,Museum of Gloucester,MU002,Catering Provisions,3103,13/04/2017,12/04/2017,BOOKER LIMITED GLOUCES,GLOUCESTER,GBR,GL4 3RT,REDACTED,556*********5775,5811,CATERERS,48.91,Pound Sterling (826),1.000000000,48.91,Debit,55184227102891033466301,02/05/2017,GLOUCESTER CC
Gloucester City Council,23UE,Gloucester Life Museum,MU005,Catering Provisions,3103,13/04/2017,12/04/2017,BOOKER LIMITED GLOUCES,GLOUCESTER,GBR,GL4 3RT,REDACTED,556*********5775,5811,CATERERS,48.9,Pound Sterling (826),1.000000000,48.9,Debit,55184227102891033466301,02/05/2017,GLOUCESTER CC
Gloucester City Council,23UE,Museum of Gloucester,MU002,Supplies For Resale,3020,19/04/2017,18/04/2017,Amazon UK Marketplace,800-279-6620,LUX,L2338,REDACTED,556*********5775,5942,BOOK STORES,8.86,Pound Sterling (826),1.000000000,8.86,Debit,55204727108000570059615,02/05/2017,GLOUCESTER CC
Gloucester City Council,23UE,Gloucester Life Museum,MU005,Supplies For Resale,3020,19/04/2017,18/04/2017,Amazon UK Marketplace,800-279-6620,LUX,L2338,REDACTED,556*********5775,5942,BOOK STORES,8.86,Pound Sterling (826),1.000000000,8.86,Debit,55204727108000570059615,02/05/2017,GLOUCESTER CC
Gloucester City Council,23UE,Museum of Gloucester,MU002,Supplies For Resale,3020,19/04/2017,19/04/2017,Amazon UK Marketplace,800-279-6620,LUX,L2338,REDACTED,556*********5775,5942,BOOK STORES,11.99,Pound Sterling (826),1.000000000,11.99,Debit,55204727109000888787815,02/05/2017,GLOUCESTER CC
Gloucester City Council,23UE,Gloucester Life Museum,MU005,Supplies For Resale,3020,19/04/2017,19/04/2017,Amazon UK Marketplace,800-279-6620,LUX,L2338,REDACTED,556*********5775,5942,BOOK STORES,11.99,Pound Sterling (826),1.000000000,11.99,Debit,55204727109000888787815,02/05/2017,GLOUCESTER CC
Gloucester City Council,23UE,Gloucester Life Museum,MU005,Equipment and Furniture,3001,24/04/2017,20/04/2017,CURRYS ONLINE,HEMEL HEMPSTE,GBR,HP2 7JG,REDACTED,556*********5775,5732,ELECTRONIC SALES,258.99,Pound Sterling (826),1.000000000,258.99,Debit,15377757112010035384934,02/05/2017,GLOUCESTER CC
Gloucester City Council,23UE,Museum of Gloucester,MU002,Equipment and Furniture,3001,27/04/2017,26/04/2017,STEPHENS ELECTRICS,GLOUCESTER,,GL1 1RA,REDACTED,556*********5775,5722,HOUSEHOLD APPLIANCE STORES,15,Pound Sterling (826),1.000000000,15,Debit,55504437116110202282320,02/05/2017,GLOUCESTER CC
Gloucester City Council,23UE,Gloucester Life Museum,MU005,Equipment and Furniture,3001,27/04/2017,26/04/2017,STEPHENS ELECTRICS,GLOUCESTER,,GL1 1RA,REDACTED,556*********5775,5722,HOUSEHOLD APPLIANCE STORES,15,Pound Sterling (826),1.000000000,15,Debit,55504437116110202282320,02/05/2017,GLOUCESTER CC
Gloucester City Council,23UE,Guildhall Bar & Caf�,GH005,Catering Provisions,3103,06/04/2017,05/04/2017,SAINSBURYS SACAT 2221,GLOUCESTER,GBR,GL2 5SA,REDACTED,556*********5661,5411,"GROCERY STORES, SUPERMARKETS",19.1,Pound Sterling (826),1.000000000,19.1,Debit,25425157096010101886634,02/05/2017,GLOUCESTER CC
Gloucester City Council,23UE,Guildhall Bar & Caf�,GH005,Catering Provisions,3103,10/04/2017,07/04/2017,ASDA SUPERSTORE,GLOUCESTER,GBR,GL1 1DS,REDACTED,556*********5661,5411,"GROCERY STORES, SUPERMARKETS",20.03,Pound Sterling (826),1.000000000,20.03,Debit,45377757098030237269159,02/05/2017,GLOUCESTER CC
Gloucester City Council,23UE,Guildhall Bar & Caf�,GH005,Catering Provisions,3103,10/04/2017,07/04/2017,CO-OPERATIVE FOOD,GLOUCESTER,,GL1 1EA,REDACTED,556*********5661,5411,"GROCERY STORES, SUPERMARKETS",4.55,Pound Sterling (826),1.000000000,4.55,Debit,05230657098210073989218,02/05/2017,GLOUCESTER CC
Gloucester City Council,23UE,Guildhall Bar & Caf�,GH005,Catering Provisions,3103,11/04/2017,10/04/2017,HOLLAND & BARRETT,GLOUCESTER,,GL1 1PD,REDACTED,556*********5661,5999,MISCELLANEOUS AND RETAIL STORES,5.97,Pound Sterling (826),1.000000000,5.97,Debit,05230657101530077797084,02/05/2017,GLOUCESTER CC
Gloucester City Council,23UE,Guildhall Bar & Caf�,GH005,Catering Provisions,3103,11/04/2017,10/04/2017,TESCO STORES (6819),GLOUCESTER,GBR,GL1 1TP,REDACTED,556*********5661,5411,"GROCERY STORES, SUPERMARKETS",5.29,Pound Sterling (826),1.000000000,5.29,Debit,55377757101040335777676,02/05/2017,GLOUCESTER CC
Gloucester City Council,23UE,Guildhall Bar & Caf�,GH005,Catering Provisions,3103,12/04/2017,11/04/2017,ASDA SUPERSTORE,GLOUCESTER,GBR,GL1 1DS,REDACTED,556*********5661,5411,"GROCERY STORES, SUPERMARKETS",5.95,Pound Sterling (826),1.000000000,5.95,Debit,45377757102050213225896,02/05/2017,GLOUCESTER CC
Gloucester City Council,23UE,Guildhall Bar & Caf�,GH005,Catering Provisions,3103,12/04/2017,11/04/2017,ICELAND,GLOUCESTER,GBR,GL1 1SA,REDACTED,556*********5661,5411,"GROCERY STORES, SUPERMARKETS",4.96,Pound Sterling (826),1.000000000,4.96,Debit,35377757102050152210637,02/05/2017,GLOUCESTER CC
Gloucester City Council,23UE,Guildhall Bar & Caf�,GH005,Catering Provisions,3103,13/04/2017,12/04/2017,ASDA SUPERSTORE,GLOUCESTER,GBR,GL1 1DS,REDACTED,556*********5661,5411,"GROCERY STORES, SUPERMARKETS",10.21,Pound Sterling (826),1.000000000,10.21,Debit,45377757103060225528657,02/05/2017,GLOUCESTER CC
Gloucester City Council,23UE,Guildhall Bar & Caf�,GH005,Catering Provisions,3103,14/04/2017,13/04/2017,BOOKER LIMITED GLOUCES,GLOUCESTER,GBR,GL4 3RT,REDACTED,556*********5661,5811,CATERERS,39.38,Pound Sterling (826),1.000000000,39.38,Debit,55184227103891044293446,02/05/2017,GLOUCESTER CC
Gloucester City Council,23UE,Guildhall Bar & Caf�,GH005,Catering Provisions,3103,19/04/2017,18/04/2017,ALDI,GLOUCESTER,,GL2 4QL,REDACTED,556*********5661,5411,"GROCERY STORES, SUPERMARKETS",11.64,Pound Sterling (826),1.000000000,11.64,Debit,55541967109495000092959,02/05/2017,GLOUCESTER CC
Gloucester City Council,23UE,Guildhall Bar & Caf�,GH005,Catering Provisions,3103,25/04/2017,24/04/2017,ALDI,GLOUCESTER,,GL1 5BJ,REDACTED,556*********5661,5411,"GROCERY STORES, SUPERMARKETS",4.78,Pound Sterling (826),1.000000000,4.78,Debit,55541967115495000509483,02/05/2017,GLOUCESTER CC
Gloucester City Council,23UE,Guildhall Bar & Caf�,GH005,Catering Provisions,3103,25/04/2017,24/04/2017,ICELAND,GLOUCESTER,GBR,GL1 1SA,REDACTED,556*********5661,5411,"GROCERY STORES, SUPERMARKETS",9.5,Pound Sterling (826),1.000000000,9.5,Debit,35377757115020144530512,02/05/2017,GLOUCESTER CC
Gloucester City Council,23UE,Guildhall Bar & Caf�,GH005,Catering Provisions,3103,26/04/2017,25/04/2017,ASDA SUPERSTORE,GLOUCESTER,GBR,GL1 1DS,REDACTED,556*********5661,5411,"GROCERY STORES, SUPERMARKETS",38.96,Pound Sterling (826),1.000000000,38.96,Debit,45377757116030256958094,02/05/2017,GLOUCESTER CC
Gloucester City Council,23UE,Guildhall Bar & Caf�,GH005,Catering Provisions,3103,28/04/2017,27/04/2017,SAINSBURYS SACAT 0771,GLOUCESTER,GBR,GL1 2AG,REDACTED,556*********5661,5411,"GROCERY STORES, SUPERMARKETS",8.95,Pound Sterling (826),1.000000000,8.95,Debit,25425157118050107521730,02/05/2017,GLOUCESTER CC
Gloucester City Council,23UE,Docks Complex - Services,AM006,Equipment and Furniture,3001,13/04/2017,12/04/2017,Trainline,London,GBR,1445,REDACTED,556*********3822,4112,PASSENGER RAILWAYS,73.95,Pound Sterling (826),1.000000000,73.95,Debit,85130087102714956405108,02/05/2017,GLOUCESTER CC
Gloucester City Council,23UE,Gloucester Guildhall,GH001,Public Transport - Staff,2402,13/04/2017,12/04/2017,Amazon UK Marketplace,800-279-6620,LUX,L2338,REDACTED,556*********3822,5942,BOOK STORES,39.92,Pound Sterling (826),1.000000000,39.92,Debit,55204727102000023447512,02/05/2017,GLOUCESTER CC
Gloucester City Council,23UE,Tourist Information Centre,TI002,Public Transport - Staff,2402,14/04/2017,13/04/2017,Trainline,London,GBR,1445,REDACTED,556*********3822,4112,PASSENGER RAILWAYS,146.37,Pound Sterling (826),1.000000000,146.37,Debit,85130087103714986423070,02/05/2017,GLOUCESTER CC
Gloucester City Council,23UE,Managing Director & Directors,MT001,Public Transport - Staff,2402,20/04/2017,19/04/2017,Trainline,London,GBR,1445,REDACTED,556*********3822,4112,PASSENGER RAILWAYS,18,Pound Sterling (826),1.000000000,18,Debit,85130087109715162223204,02/05/2017,GLOUCESTER CC
Gloucester City Council,23UE,Members Support,DS002,Members Travel Expenses,3609,24/04/2017,20/04/2017,TRAINLINE,Rail Tickets,GBR,1445,REDACTED,556*********3822,4112,PASSENGER RAILWAYS,-103.85,Pound Sterling (826),1.000000000,-103.85,Credit,85130087111715204988539,02/05/2017,GLOUCESTER CC
Gloucester City Council,23UE,Guildhall Events,GH002,Advertising and Publicity,3404,03/04/2017,31/03/2017,FACEBK 6PRE2CW5M2,www.fb.me/ads,IRL,2,REDACTED,556*********8256,7311,ADVERTISING SERVICES,18.33,Pound Sterling (826),1.000000000,18.33,Debit,15265677090580809961241,02/05/2017,GLOUCESTER CC
Gloucester City Council,23UE,Guildhall Events,GH002,Advertising and Publicity,3404,03/04/2017,01/04/2017,FACEBK PPTZ9C2FV2,www.fb.me/ads,IRL,2,REDACTED,556*********8256,7311,ADVERTISING SERVICES,2.13,Pound Sterling (826),1.000000000,2.13,Debit,15265677091488256041245,02/05/2017,GLOUCESTER CC
Gloucester City Council,23UE,Guildhall Events,GH002,Professional Advice/Consultants Fees,3952,05/04/2017,04/04/2017,MIPERMIT PARKING-DOM,INTERNET,GBR,SN15 5FD,REDACTED,556*********8256,7523,AUTOMOBILE PARKING LOTS AND GARAGES,10,Pound Sterling (826),1.000000000,10,Debit,25425157095000094640396,02/05/2017,GLOUCESTER CC
Gloucester City Council,23UE,Guildhall Events,GH002,Professional Advice/Consultants Fees,3952,07/04/2017,06/04/2017,MIPERMIT PARKING-DOM,INTERNET,GBR,SN15 5FD,REDACTED,556*********8256,7523,AUTOMOBILE PARKING LOTS AND GARAGES,10,Pound Sterling (826),1.000000000,10,Debit,25425157097020103448902,02/05/2017,GLOUCESTER CC
Gloucester City Council,23UE,Guildhall Events,GH002,Professional Advice/Consultants Fees,3952,07/04/2017,06/04/2017,MIPERMIT PARKING-DOM,INTERNET,GBR,SN15 5FD,REDACTED,556*********8256,7523,AUTOMOBILE PARKING LOTS AND GARAGES,10,Pound Sterling (826),1.000000000,10,Debit,25425157097020103450460,02/05/2017,GLOUCESTER CC
Gloucester City Council,23UE,Guildhall Bar & Caf�,GH005,General Supplies/Materials,3025,07/04/2017,06/04/2017,Amazon UK Marketplace,800-279-6620,LUX,L2338,REDACTED,556*********8256,5942,BOOK STORES,14.09,Pound Sterling (826),1.000000000,14.09,Debit,55204727096000328644456,02/05/2017,GLOUCESTER CC
Gloucester City Council,23UE,Guildhall Bar & Caf�,GH005,General Supplies/Materials,3025,07/04/2017,07/04/2017,Amazon UK Marketplace,800-279-6620,LUX,L2338,REDACTED,556*********8256,5942,BOOK STORES,6.08,Pound Sterling (826),1.000000000,6.08,Debit,55204727097000471940874,02/05/2017,GLOUCESTER CC
Gloucester City Council,23UE,Blackfriars,GH010,General Supplies/Materials,3025,12/04/2017,11/04/2017,LIDL UK,STOCKTON ON T,GBR,GL4 4LP,REDACTED,556*********8256,5411,"GROCERY STORES, SUPERMARKETS",40.25,Pound Sterling (826),1.000000000,40.25,Debit,25377757102050084466217,02/05/2017,GLOUCESTER CC
Gloucester City Council,23UE,Guildhall Events,GH002,Professional Advice/Consultants Fees,3952,14/04/2017,13/04/2017,MIPERMIT PARKING-DOM,INTERNET,GBR,SN15 5FD,REDACTED,556*********8256,7523,AUTOMOBILE PARKING LOTS AND GARAGES,20,Pound Sterling (826),1.000000000,20,Debit,25425157104070112511951,02/05/2017,GLOUCESTER CC
Gloucester City Council,23UE,Blackfriars,GH010,General Supplies/Materials,3025,17/04/2017,15/04/2017,TESCO STORES (6819),GLOUCESTER,GBR,GL1 1TP,REDACTED,556*********8256,5411,"GROCERY STORES, SUPERMARKETS",3.16,Pound Sterling (826),1.000000000,3.16,Debit,95377757106071190386494,02/05/2017,GLOUCESTER CC
Gloucester City Council,23UE,Blackfriars,GH010,Grounds Maintenance,1100,20/04/2017,19/04/2017,MORGAN SUPPLIES LIMITE,GLOUCESTER,GBR,GL4 4PF,REDACTED,556*********8256,5211,LUMBER AND BUILDING MATERIALS STORES,107.5,Pound Sterling (826),1.000000000,107.5,Debit,25425157110090038081071,02/05/2017,GLOUCESTER CC
Gloucester City Council,23UE,Guildhall Events,GH002,Professional Advice/Consultants Fees,3952,25/04/2017,24/04/2017,MIPERMIT PARKING-DOM,INTERNET,GBR,SN15 5FD,REDACTED,556*********8256,7523,AUTOMOBILE PARKING LOTS AND GARAGES,20,Pound Sterling (826),1.000000000,20,Debit,25425157115020091434300,02/05/2017,GLOUCESTER CC
Gloucester City Council,23UE,Guildhall Events,GH002,Professional Advice/Consultants Fees,3952,28/04/2017,27/04/2017,MIPERMIT PARKING-DOM,INTERNET,GBR,SN15 5FD,REDACTED,556*********8256,7523,AUTOMOBILE PARKING LOTS AND GARAGES,10,Pound Sterling (826),1.000000000,10,Debit,25425157118050100305305,02/05/2017,GLOUCESTER CC
Gloucester City Council,23UE,Guildhall Cinema,GH003,Printing External,3203,28/04/2017,27/04/2017,WWW.INSTANTPRINT.C,01709 382202,,S63 5DR,REDACTED,556*********8256,7338,QUICK-COPY AND REPRODUCTION SERVICES,84,Pound Sterling (826),1.000000000,84,Debit,05230657118910076956595,02/05/2017,GLOUCESTER CC
Gloucester City Council,23UE,Guildhall Events,GH002,Advertising and Publicity,3404,01/05/2017,30/04/2017,FACEBK BYMKKCS5M2,www.fb.me/ads,IRL,2,REDACTED,556*********8256,7311,ADVERTISING SERVICES,22.21,Pound Sterling (826),1.000000000,22.21,Debit,15265677120515697471238,02/05/2017,GLOUCESTER CC
Gloucester City Council,23UE,Guildhall Events,GH002,Advertising and Publicity,3404,01/05/2017,30/04/2017,FACEBK FAHF8DEEV2,www.fb.me/ads,IRL,2,REDACTED,556*********8256,7311,ADVERTISING SERVICES,7.87,Pound Sterling (826),1.000000000,7.87,Debit,15265677120413704461535,02/05/2017,GLOUCESTER CC
Gloucester City Council,23UE,Vehicles,CT002,Hire of Vehicles/Plant,2301,17/04/2017,14/04/2017,ENTERPRISE,01452 419222,,GL2 5HY,REDACTED,556*********3063,3405,ENTERPRISE RENT-A-CAR,380.02,Pound Sterling (826),1.000000000,380.02,Debit,05230657105400078350653,02/05/2017,GLOUCESTER CC
Gloucester City Council,23UE,Vehicles,CT002,Hire of Vehicles/Plant,2301,17/04/2017,14/04/2017,ENTERPRISE,01452 419222,,GL2 5HY,REDACTED,556*********3063,3405,ENTERPRISE RENT-A-CAR,425.04,Pound Sterling (826),1.000000000,425.04,Debit,05230657105410078350660,02/05/2017,GLOUCESTER CC
Gloucester City Council,23UE,Business Transformation,BI006,"ICT Software, Licences & Support",3521,19/04/2017,18/04/2017,paypro-charge.com,16468736857,GBR,W1j6BD,REDACTED,556*********3063,5734,COMPUTER SOFTWARE STORES,49.56,Pound Sterling (826),1.000000000,49.56,Debit,85184647108715982470446,02/05/2017,GLOUCESTER CC
Gloucester City Council,23UE,Business Transformation,BI006,ICT New System Software,3522,19/04/2017,18/04/2017,EASILY LTD,LONDON E14,,E14 5LQ,REDACTED,556*********3063,7392,"MANAGEMENT, CONSULTING AND PUBLIC RELATIONS SERVICES",13.19,Pound Sterling (826),1.000000000,13.19,Debit,05230657109850079849028,02/05/2017,GLOUCESTER CC
Gloucester City Council,23UE,Civica Admin Charges,BI002,Professional Advice/Consultants Fees,3952,20/04/2017,19/04/2017,HMCOURTS-SERVICE.G,01452420100,,GL1 2ZG,REDACTED,556*********3063,9222,FINES,1176,Pound Sterling (826),1.000000000,1176,Debit,05230657110580071238857,02/05/2017,GLOUCESTER CC
Gloucester City Council,23UE,Corporate Expenses,FS001,Professional Membership & Subscriptions,3403,27/04/2017,26/04/2017,WWW.GAMBLINGCOMMIS,0121 2306500,,B2 4BP,REDACTED,556*********3063,8999,PROFESSIONAL SERVICES NOT ELSEWHERE CLASSIFIED,692,Pound Sterling (826),1.000000000,692,Debit,05230657117810077657997,02/05/2017,GLOUCESTER CC
